fUSD/lending_fUSD_20260628
["ID","MTS","AMOUNT","RATE_DAILY","PERIOD"]
[426567187,1782597045000,-151.0,0.00032897,7]
[426567176,1782597045000,-151.0,0.00032897,7]
[426567218,1782597045000,-151.0,0.00032897,7]
[426567164,1782597045000,-685.78946481,0.00032797,2]
[426567221,1782597045000,-1349.829094,0.00032897,7]
[426567251,1782597045000,-151.0,0.00032897,7]
[426567253,1782597045000,-151.0,0.00032897,7]
[426567255,1782597045000,-151.0,0.00032897,7]
[426567256,1782597045000,-151.0,0.00032897,7]
[426567258,1782597045000,-151.0,0.00032897,7]
[426567257,1782597045000,-151.0,0.00032897,7]
[426567259,1782597045000,-151.0,0.00032897,7]
[426567260,1782597045000,-217.844016,0.00032897,7]
[426567261,1782597045000,-151.0,0.00032897,7]
[426567266,1782597045000,-151.0,0.00032897,7]
[426567263,1782597045000,-157.618483,0.00032897,7]
[426567265,1782597045000,-151.0,0.00032897,7]
[426567254,1782597045000,-151.0,0.00032897,7]
[426567264,1782597045000,-281.935607,0.00032897,7]
[426567267,1782597045000,-151.0,0.00032897,7]
[426567268,1782597045000,-738.507978,0.00032897,7]
[426567269,1782597045000,-738.507978,0.00032897,7]
[426567270,1782597045000,-738.507978,0.00032897,7]
[426567271,1782597045000,-738.507978,0.00032897,7]
[426567272,1782597045000,-151.0,0.00032897,7]
[426567274,1782597045000,-151.0,0.00032897,7]
[426567273,1782597045000,-151.0,0.00032897,7]
[426567279,1782597045000,-151.0,0.00032897,7]
[426567276,1782597045000,-151.0,0.00032897,7]
[426567220,1782597045000,-151.0,0.00032897,7]
[426567281,1782597045000,-151.0,0.00032897,7]
[426567262,1782597045000,-151.0,0.00032897,7]
[426567252,1782597045000,-151.0,0.00032897,7]
[426567277,1782597045000,-151.0,0.00032897,7]
[426567247,1782597045000,-151.0,0.00032897,7]
[426567250,1782597045000,-151.0,0.00032897,7]
[426567223,1782597045000,-1349.829094,0.00032897,7]
[426567224,1782597045000,-1349.829094,0.00032897,7]
[426567225,1782597045000,-151.0,0.00032897,7]
[426567226,1782597045000,-151.0,0.00032897,7]
[426567229,1782597045000,-151.0,0.00032897,7]
[426567227,1782597045000,-189.449642,0.00032897,7]
[426567230,1782597045000,-189.449642,0.00032897,7]
[426567228,1782597045000,-154.096289,0.00032897,7]
[426567232,1782597045000,-189.449642,0.00032897,7]
[426567231,1782597045000,-189.449642,0.00032897,7]
[426567233,1782597045000,-151.0,0.00032897,7]
[426567235,1782597045000,-151.0,0.00032897,7]
[426567222,1782597045000,-1349.829094,0.00032897,7]
[426567234,1782597045000,-151.0,0.00032897,7]
[426567236,1782597045000,-235.77005,0.00032897,7]
[426567248,1782597045000,-236.350279,0.00032897,7]
[426567245,1782597045000,-151.0,0.00032897,7]
[426567246,1782597045000,-194.866053,0.00032897,7]
[426567243,1782597045000,-235.77005,0.00032897,7]
[426567241,1782597045000,-151.0,0.00032897,7]
[426567249,1782597045000,-151.0,0.00032897,7]
[426567242,1782597045000,-151.0,0.00032897,7]
[426567244,1782597045000,-194.866053,0.00032897,7]
[426567237,1782597045000,-194.866053,0.00032897,7]
[426567239,1782597045000,-235.77005,0.00032897,7]
[426567238,1782597045000,-235.77005,0.00032897,7]
[426567240,1782597045000,-194.866053,0.00032897,7]
[426567325,1782597046000,-311.09987874,0.00033566,2]
[426567323,1782597046000,-359.30684167,0.0003356,2]
[426567322,1782597046000,-250.0,0.0003356,7]
[426567321,1782597046000,-288.7063713,0.00033559,2]
[426567320,1782597046000,-155.0,0.00033555,120]
[426567317,1782597046000,-339.1085399,0.00033545,2]
[426567315,1782597046000,-340.69578455,0.00033532,2]
[426567318,1782597046000,-243.43434025,0.00033545,2]
[426567324,1782597046000,-4232.0,0.00033561,10]
[426567319,1782597046000,-203.19,0.00033555,120]
[426567316,1782597046000,-161.4068907,0.00033532,2]
[426567333,1782597046000,-729.84002325,0.00033566,2]
[426567328,1782597046000,-584.34311185,0.00033566,2]
[426567329,1782597046000,-445.84003865,0.00033566,2]
[426567327,1782597046000,-513.66493967,0.00033566,2]
[426567331,1782597046000,-300.000001,0.00033566,2]
[426567330,1782597046000,-300.16872689,0.00033566,2]
[426567332,1782597046000,-607.49404731,0.00033566,2]
[426567335,1782597046000,-306.88407502,0.00033566,2]
[426567334,1782597046000,-303.21732952,0.00033566,2]
[426567336,1782597046000,-302.02088146,0.00033566,2]
[426567337,1782597046000,-300.1687351,0.00033566,2]
[426567339,1782597046000,-588.23236035,0.00033566,2]
[426567314,1782597046000,-564.60534155,0.00033529,2]
[426567326,1782597046000,-596.94910817,0.00033566,2]
[426567313,1782597046000,-198.24204401,0.00033469,2]
[426567299,1782597046000,-350.0,0.00032949,2]
[426567309,1782597046000,-1164.29419662,0.00033268,30]
[426567283,1782597046000,-151.0,0.00032897,7]
[426567285,1782597046000,-299.872656,0.00032897,7]
[426567288,1782597046000,-151.0,0.00032897,7]
[426567291,1782597046000,-151.0,0.00032897,7]
[426567290,1782597046000,-151.0,0.00032897,7]
[426567289,1782597046000,-286.0,0.00032897,7]
[426567287,1782597046000,-151.0,0.00032897,7]
[426567294,1782597046000,-151.0,0.00032897,7]
[426567292,1782597046000,-151.0,0.00032897,7]
[426567293,1782597046000,-151.0,0.00032897,7]
[426567295,1782597046000,-151.0,0.00032897,7]
[426567296,1782597046000,-1075.54,0.000329,30]
[426567298,1782597046000,-5527.0,0.000329,5]
[426567297,1782597046000,-416.13,0.000329,7]
[426567300,1782597046000,-154.31,0.00032985,30]
[426567301,1782597046000,-152.0,0.00032988,7]
[426567302,1782597046000,-382.304854,0.00033024,7]
[426567304,1782597046000,-350.0,0.00033059,2]
[426567303,1782597046000,-35575.0,0.00033033,20]
[426567305,1782597046000,-4676.73887453,0.00033167,2]
[426567307,1782597046000,-200.0,0.000332,12]
[426567306,1782597046000,-158.43334795,0.00033174,3]
[426567308,1782597046000,-416.13,0.000332,7]
[426567310,1782597046000,-313.33723374,0.00033289,2]
[426567311,1782597046000,-158.43334795,0.00033448,3]
[426567312,1782597046000,-2000.0,0.00033458,7]
[426567340,1782597046000,-300.0,0.00033566,2]
[426567338,1782597046000,-345.56049828,0.00033566,2]
[426567342,1782597046000,-300.1687269,0.00033566,2]
[426567371,1782597046000,-167.0,0.00033644,30]
[426567370,1782597046000,-195.0,0.00033644,30]
[426567374,1782597046000,-156.0,0.00033644,30]
[426567377,1782597046000,-3563.0,0.00033667,2]
[426567378,1782597046000,-282.0,0.00033667,2]
[426567375,1782597046000,-260.0,0.00033644,30]
[426567379,1782597046000,-1361.0,0.00033667,2]
[426567376,1782597046000,-584.0,0.00033653,7]
[426567381,1782597046000,-3649.0,0.00033667,2]
[426567380,1782597046000,-935.0,0.00033667,2]
[426567383,1782597046000,-3000.0,0.00033698,120]
[426567382,1782597046000,-350.0,0.00033682,2]
[426567385,1782597046000,-932.89,0.000337,30]
[426567386,1782597046000,-353.31,0.00033715,3]
[426567388,1782597046000,-158.43334795,0.00033722,3]
[426567387,1782597046000,-233.0,0.00033721,2]
[426567389,1782597046000,-500.0,0.00033743,7]
[426567390,1782597046000,-500.0,0.00033743,7]
[426567391,1782597046000,-500.0,0.00033743,7]
[426567392,1782597046000,-500.0,0.00033743,7]
[426567394,1782597046000,-500.0,0.00033743,7]
[426567395,1782597046000,-500.0,0.00033743,7]
[426567396,1782597046000,-258.0,0.00033743,120]
[426567393,1782597046000,-500.0,0.00033743,7]
[426567341,1782597046000,-597.15298324,0.00033566,2]
[426567373,1782597046000,-184.0,0.00033644,30]
[426567372,1782597046000,-831.0,0.00033644,30]
[426567384,1782597046000,-2135.16222338,0.00033698,120]
[426567368,1782597046000,-153.0,0.00033644,30]
[426567344,1782597046000,-584.88332166,0.00033566,2]
[426567369,1782597046000,-568.0,0.00033644,30]
[426567343,1782597046000,-513.70275549,0.00033566,2]
[426567345,1782597046000,-454.07889135,0.00033566,2]
[426567346,1782597046000,-446.43069343,0.00033566,2]
[426567349,1782597046000,-495.08307749,0.00033566,2]
[426567348,1782597046000,-300.08436755,0.00033566,2]
[426567347,1782597046000,-388.98550907,0.00033566,2]
[426567351,1782597046000,-303.25778654,0.00033566,2]
[426567353,1782597046000,-345.56049828,0.00033566,2]
[426567352,1782597046000,-300.08436755,0.00033566,2]
[426567354,1782597046000,-529.43442734,0.00033566,2]
[426567355,1782597046000,-1806.56266267,0.00033566,2]
[426567350,1782597046000,-607.54605794,0.00033566,2]
[426567359,1782597046000,-953.92087478,0.00033566,2]
[426567367,1782597046000,-210.0,0.00033644,30]
[426567364,1782597046000,-357.0,0.00033617,2]
[426567366,1782597046000,-520.0,0.00033644,30]
[426567362,1782597046000,-300.0,0.00033566,2]
[426567363,1782597046000,-416.13,0.000336,7]
[426567365,1782597046000,-553.0,0.00033644,30]
[426567360,1782597046000,-300.0,0.00033566,2]
[426567356,1782597046000,-300.0,0.00033566,2]
[426567358,1782597046000,-300.0,0.00033566,2]
[426567357,1782597046000,-345.39990021,0.00033566,2]
[426567361,1782597046000,-321.0454673,0.00033566,2]
[426567437,1782597047000,-500.0,0.00033973,7]
[426567438,1782597047000,-500.0,0.00033973,7]
[426567435,1782597047000,-500.0,0.00033973,7]
[426567436,1782597047000,-500.0,0.00033973,7]
[426567434,1782597047000,-500.0,0.00033973,7]
[426567430,1782597047000,-500.0,0.00033973,7]
[426567432,1782597047000,-500.0,0.00033973,7]
[426567431,1782597047000,-500.0,0.00033973,7]
[426567427,1782597047000,-500.0,0.00033973,7]
[426567429,1782597047000,-500.0,0.00033973,7]
[426567441,1782597047000,-500.0,0.00033973,7]
[426567433,1782597047000,-500.0,0.00033973,7]
[426567440,1782597047000,-500.0,0.00033973,7]
[426567453,1782597047000,-500.0,0.00033973,7]
[426567442,1782597047000,-500.0,0.00033973,7]
[426567443,1782597047000,-500.0,0.00033973,7]
[426567444,1782597047000,-500.0,0.00033973,7]
[426567446,1782597047000,-500.0,0.00033973,7]
[426567445,1782597047000,-500.0,0.00033973,7]
[426567447,1782597047000,-500.0,0.00033973,7]
[426567448,1782597047000,-500.0,0.00033973,7]
[426567450,1782597047000,-500.0,0.00033973,7]
[426567449,1782597047000,-500.0,0.00033973,7]
[426567451,1782597047000,-500.0,0.00033973,7]
[426567452,1782597047000,-500.0,0.00033973,7]
[426567454,1782597047000,-500.0,0.00033973,7]
[426567425,1782597047000,-500.0,0.00033973,7]
[426567439,1782597047000,-500.0,0.00033973,7]
[426567426,1782597047000,-500.0,0.00033973,7]
[426567397,1782597047000,-908.48,0.0003379,30]
[426567424,1782597047000,-500.0,0.00033973,7]
[426567456,1782597047000,-500.0,0.00033973,7]
[426567399,1782597047000,-1131.34001779,0.00033843,30]
[426567398,1782597047000,-1075.54,0.000338,30]
[426567401,1782597047000,-641.18,0.00033843,7]
[426567400,1782597047000,-500.0,0.00033843,7]
[426567402,1782597047000,-151.0,0.00033844,2]
[426567405,1782597047000,-500.0,0.00033844,47]
[426567403,1782597047000,-500.0,0.00033844,47]
[426567404,1782597047000,-500.0,0.00033844,47]
[426567407,1782597047000,-500.0,0.00033844,47]
[426567406,1782597047000,-500.0,0.00033844,47]
[426567410,1782597047000,-208.69632857,0.00033873,2]
[426567408,1782597047000,-500.0,0.00033844,47]
[426567411,1782597047000,-1100.0,0.000339,12]
[426567412,1782597047000,-416.13,0.000339,7]
[426567409,1782597047000,-350.0,0.00033858,3]
[426567414,1782597047000,-500.0,0.00033919,7]
[426567415,1782597047000,-500.0,0.00033919,120]
[426567413,1782597047000,-1500.0,0.000339,15]
[426567416,1782597047000,-13212.52779191,0.0003392,2]
[426567417,1782597047000,-151.0,0.00033971,2]
[426567419,1782597047000,-500.0,0.00033973,7]
[426567420,1782597047000,-500.0,0.00033973,7]
[426567418,1782597047000,-500.0,0.00033973,7]
[426567421,1782597047000,-500.0,0.00033973,7]
[426567423,1782597047000,-500.0,0.00033973,7]
[426567422,1782597047000,-500.0,0.00033973,7]
[426567428,1782597047000,-500.0,0.00033973,7]
[426567455,1782597047000,-500.0,0.00033973,7]
[426567475,1782597047000,-500.0,0.00033973,7]
[426567459,1782597047000,-500.0,0.00033973,7]
[426567489,1782597047000,-500.0,0.00033973,7]
[426567491,1782597047000,-500.0,0.00033973,7]
[426567494,1782597047000,-500.0,0.00033973,7]
[426567495,1782597047000,-500.0,0.00033973,7]
[426567490,1782597047000,-500.0,0.00033973,7]
[426567493,1782597047000,-500.0,0.00033973,7]
[426567496,1782597047000,-500.0,0.00033973,7]
[426567499,1782597047000,-500.0,0.00033973,7]
[426567498,1782597047000,-500.0,0.00033973,7]
[426567501,1782597047000,-500.0,0.00033973,7]
[426567497,1782597047000,-500.0,0.00033973,7]
[426567500,1782597047000,-500.0,0.00033973,7]
[426567502,1782597047000,-500.0,0.00033973,7]
[426567504,1782597047000,-155.931213,0.00033973,7]
[426567507,1782597047000,-151.0,0.00033973,7]
[426567508,1782597047000,-151.0,0.00033973,7]
[426567506,1782597047000,-151.0,0.00033973,7]
[426567503,1782597047000,-530.57118851,0.00033973,7]
[426567505,1782597047000,-151.0,0.00033973,7]
[426567509,1782597047000,-215.6642,0.00033973,7]
[426567511,1782597047000,-215.6642,0.00033973,7]
[426567512,1782597047000,-215.6642,0.00033973,7]
[426567513,1782597047000,-151.0,0.00033973,7]
[426567510,1782597047000,-215.6642,0.00033973,7]
[426567514,1782597047000,-151.0,0.00033973,7]
[426567517,1782597047000,-151.0,0.00033973,7]
[426567457,1782597047000,-500.0,0.00033973,7]
[426567492,1782597047000,-500.0,0.00033973,7]
[426567488,1782597047000,-500.0,0.00033973,7]
[426567515,1782597047000,-151.0,0.00033973,7]
[426567486,1782597047000,-500.0,0.00033973,7]
[426567484,1782597047000,-500.0,0.00033973,7]
[426567460,1782597047000,-500.0,0.00033973,7]
[426567461,1782597047000,-500.0,0.00033973,7]
[426567462,1782597047000,-500.0,0.00033973,7]
[426567464,1782597047000,-500.0,0.00033973,7]
[426567465,1782597047000,-500.0,0.00033973,7]
[426567463,1782597047000,-500.0,0.00033973,7]
[426567468,1782597047000,-500.0,0.00033973,7]
[426567466,1782597047000,-500.0,0.00033973,7]
[426567469,1782597047000,-500.0,0.00033973,7]
[426567470,1782597047000,-500.0,0.00033973,7]
[426567467,1782597047000,-500.0,0.00033973,7]
[426567471,1782597047000,-500.0,0.00033973,7]
[426567458,1782597047000,-500.0,0.00033973,7]
[426567474,1782597047000,-500.0,0.00033973,7]
[426567472,1782597047000,-500.0,0.00033973,7]
[426567487,1782597047000,-500.0,0.00033973,7]
[426567480,1782597047000,-500.0,0.00033973,7]
[426567479,1782597047000,-500.0,0.00033973,7]
[426567481,1782597047000,-500.0,0.00033973,7]
[426567482,1782597047000,-500.0,0.00033973,7]
[426567485,1782597047000,-500.0,0.00033973,7]
[426567478,1782597047000,-500.0,0.00033973,7]
[426567473,1782597047000,-500.0,0.00033973,7]
[426567516,1782597047000,-151.0,0.00033973,7]
[426567476,1782597047000,-500.0,0.00033973,7]
[426567477,1782597047000,-500.0,0.00033973,7]
[426567483,1782597047000,-500.0,0.00033973,7]
[426567556,1782597048000,-194.866053,0.00033973,7]
[426567554,1782597048000,-235.77005,0.00033973,7]
[426567555,1782597048000,-235.77005,0.00033973,7]
[426567553,1782597048000,-194.866053,0.00033973,7]
[426567550,1782597048000,-151.0,0.00033973,7]
[426567548,1782597048000,-189.449642,0.00033973,7]
[426567551,1782597048000,-179.501042,0.00033973,7]
[426567557,1782597048000,-151.0,0.00033973,7]
[426567547,1782597048000,-189.449642,0.00033973,7]
[426567552,1782597048000,-235.77005,0.00033973,7]
[426567549,1782597048000,-151.0,0.00033973,7]
[426567564,1782597048000,-151.0,0.00033973,7]
[426567562,1782597048000,-194.866053,0.00033973,7]
[426567561,1782597048000,-151.0,0.00033973,7]
[426567558,1782597048000,-151.0,0.00033973,7]
[426567560,1782597048000,-194.866053,0.00033973,7]
[426567563,1782597048000,-151.0,0.00033973,7]
[426567566,1782597048000,-151.0,0.00033973,7]
[426567567,1782597048000,-151.0,0.00033973,7]
[426567568,1782597048000,-151.0,0.00033973,7]
[426567565,1782597048000,-151.0,0.00033973,7]
[426567569,1782597048000,-151.0,0.00033973,7]
[426567545,1782597048000,-165.464254,0.00033973,7]
[426567571,1782597048000,-151.0,0.00033973,7]
[426567559,1782597048000,-235.77005,0.00033973,7]
[426567544,1782597048000,-189.449642,0.00033973,7]
[426567531,1782597048000,-157.133539,0.00033973,7]
[426567541,1782597048000,-1349.829094,0.00033973,7]
[426567572,1782597048000,-151.0,0.00033973,7]
[426567520,1782597048000,-151.0,0.00033973,7]
[426567518,1782597048000,-151.0,0.00033973,7]
[426567519,1782597048000,-276.999688,0.00033973,7]
[426567521,1782597048000,-151.0,0.00033973,7]
[426567522,1782597048000,-151.0,0.00033973,7]
[426567523,1782597048000,-301.71469,0.00033973,7]
[426567525,1782597048000,-151.0,0.00033973,7]
[426567524,1782597048000,-151.0,0.00033973,7]
[426567527,1782597048000,-151.0,0.00033973,7]
[426567528,1782597048000,-151.0,0.00033973,7]
[426567526,1782597048000,-271.52179,0.00033973,7]
[426567529,1782597048000,-151.0,0.00033973,7]
[426567533,1782597048000,-156.854258,0.00033973,7]
[426567530,1782597048000,-151.0,0.00033973,7]
[426567532,1782597048000,-157.133539,0.00033973,7]
[426567534,1782597048000,-157.133539,0.00033973,7]
[426567535,1782597048000,-157.133539,0.00033973,7]
[426567536,1782597048000,-154.098295,0.00033973,7]
[426567540,1782597048000,-1349.829094,0.00033973,7]
[426567537,1782597048000,-168.094683,0.00033973,7]
[426567539,1782597048000,-1349.829094,0.00033973,7]
[426567538,1782597048000,-1349.829094,0.00033973,7]
[426567543,1782597048000,-151.0,0.00033973,7]
[426567542,1782597048000,-151.0,0.00033973,7]
[426567546,1782597048000,-189.449642,0.00033973,7]
[426567573,1782597048000,-151.0,0.00033973,7]
[426567570,1782597048000,-151.0,0.00033973,7]
[426567574,1782597048000,-151.0,0.00033973,7]
[426567604,1782597048000,-5000.0,0.00033998,2]
[426567605,1782597048000,-800.0,0.00034,7]
[426567606,1782597048000,-160.0,0.00034,10]
[426567608,1782597048000,-379.785613,0.00034056,7]
[426567607,1782597048000,-685.78946479,0.00034049,2]
[426567609,1782597048000,-382.304854,0.00034056,7]
[426567610,1782597048000,-400.0,0.00034056,60]
[426567611,1782597048000,-151.0,0.00034056,7]
[426567614,1782597048000,-200.0,0.0003417,7]
[426567613,1782597048000,-2662.69277048,0.00034167,2]
[426567612,1782597048000,-282.0,0.00034103,2]
[426567603,1782597048000,-5166.60028223,0.00033998,2]
[426567617,1782597048000,-200.0,0.0003417,7]
[426567618,1782597048000,-200.0,0.000342,13]
[426567621,1782597048000,-21021.9778602,0.00034254,2]
[426567616,1782597048000,-200.0,0.0003417,7]
[426567620,1782597048000,-1795.6272654,0.00034254,2]
[426567623,1782597048000,-564.60534155,0.00034261,2]
[426567622,1782597048000,-452.2240856,0.00034254,2]
[426567624,1782597048000,-158.43334795,0.0003427,3]
[426567626,1782597048000,-156.45618948,0.00034302,2]
[426567625,1782597048000,-526.0,0.00034289,2]
[426567627,1782597048000,-591.68687884,0.00034315,2]
[426567628,1782597048000,-908.48,0.00034399,30]
[426567619,1782597048000,-185.0,0.00034235,2]
[426567602,1782597048000,-158.43334795,0.00033996,3]
[426567615,1782597048000,-200.0,0.0003417,7]
[426567599,1782597048000,-151.0,0.00033995,7]
[426567600,1782597048000,-153.001738,0.00033995,7]
[426567576,1782597048000,-151.0,0.00033973,7]
[426567577,1782597048000,-151.0,0.00033973,7]
[426567575,1782597048000,-151.0,0.00033973,7]
[426567579,1782597048000,-738.507978,0.00033973,7]
[426567578,1782597048000,-293.665542,0.00033973,7]
[426567580,1782597048000,-738.507978,0.00033973,7]
[426567582,1782597048000,-738.507978,0.00033973,7]
[426567583,1782597048000,-151.0,0.00033973,7]
[426567581,1782597048000,-738.507978,0.00033973,7]
[426567585,1782597048000,-151.0,0.00033973,7]
[426567586,1782597048000,-151.0,0.00033973,7]
[426567587,1782597048000,-215.675201,0.00033973,7]
[426567584,1782597048000,-151.0,0.00033973,7]
[426567590,1782597048000,-151.0,0.00033973,7]
[426567598,1782597048000,-151.0,0.00033995,7]
[426567595,1782597048000,-300.773226,0.00033973,7]
[426567594,1782597048000,-151.0,0.00033973,7]
[426567596,1782597048000,-152.0,0.00033989,8]
[426567591,1782597048000,-151.0,0.00033973,7]
[426567601,1782597048000,-151.0,0.00033995,7]
[426567597,1782597048000,-35575.0,0.00033995,20]
[426567592,1782597048000,-151.0,0.00033973,7]
[426567589,1782597048000,-284.822462,0.00033973,7]
[426567588,1782597048000,-155.388608,0.00033973,7]
[426567593,1782597048000,-151.0,0.00033973,7]
[426567668,1782597049000,-4218.59699199,0.00035,30]
[426567667,1782597049000,-876.0,0.00034999,7]
[426567669,1782597049000,-1591.98638004,0.00035,2]
[426567666,1782597049000,-500.0,0.00034999,120]
[426567664,1782597049000,-753.90893958,0.00034993,2]
[426567661,1782597049000,-152.0,0.00034991,9]
[426567662,1782597049000,-564.60534155,0.00034993,2]
[426567663,1782597049000,-1481.86182147,0.00034993,2]
[426567660,1782597049000,-35575.0,0.00034957,20]
[426567658,1782597049000,-6348.0,0.00034903,10]
[426567670,1782597049000,-1500.0,0.00035,2]
[426567665,1782597049000,-500.0,0.00034999,7]
[426567672,1782597049000,-35498.58284019,0.00035,7]
[426567685,1782597049000,-215.6642,0.00035,7]
[426567673,1782597049000,-35498.58284019,0.00035,7]
[426567674,1782597049000,-800.0,0.00035,7]
[426567675,1782597049000,-1500.0,0.00035,2]
[426567677,1782597049000,-151.0,0.00035,7]
[426567676,1782597049000,-1500.0,0.00035,2]
[426567678,1782597049000,-151.0,0.00035,7]
[426567680,1782597049000,-151.0,0.00035,7]
[426567681,1782597049000,-280.871832,0.00035,7]
[426567679,1782597049000,-262.8,0.00035,7]
[426567683,1782597049000,-215.6642,0.00035,7]
[426567684,1782597049000,-215.6642,0.00035,7]
[426567659,1782597049000,-222.88255222,0.00034947,2]
[426567671,1782597049000,-1512.1982,0.00035,2]
[426567656,1782597049000,-591.68687884,0.00034846,2]
[426567630,1782597049000,-1500.0,0.000344,15]
[426567655,1782597049000,-564.72946764,0.00034835,2]
[426567631,1782597049000,-350.0,0.00034402,2]
[426567686,1782597049000,-215.6642,0.00035,7]
[426567629,1782597049000,-1500.0,0.000344,7]
[426567632,1782597049000,-800.0,0.000345,7]
[426567633,1782597049000,-932.89,0.000345,30]
[426567635,1782597049000,-160.0,0.00034584,11]
[426567634,1782597049000,-158.43334795,0.00034544,3]
[426567636,1782597049000,-1075.54,0.000346,30]
[426567638,1782597049000,-553.0,0.00034644,30]
[426567637,1782597049000,-564.72946764,0.00034606,2]
[426567639,1782597049000,-520.0,0.00034644,30]
[426567642,1782597049000,-568.0,0.00034644,30]
[426567654,1782597049000,-1164.29419662,0.00034834,30]
[426567641,1782597049000,-153.0,0.00034644,30]
[426567644,1782597049000,-167.0,0.00034644,30]
[426567645,1782597049000,-831.0,0.00034644,30]
[426567643,1782597049000,-195.0,0.00034644,30]
[426567646,1782597049000,-184.0,0.00034644,30]
[426567650,1782597049000,-404.47,0.00034714,3]
[426567648,1782597049000,-260.0,0.00034644,30]
[426567651,1782597049000,-526.0,0.0003475,2]
[426567649,1782597049000,-4057.10182715,0.00034663,2]
[426567647,1782597049000,-156.0,0.00034644,30]
[426567653,1782597049000,-158.43334795,0.00034818,3]
[426567652,1782597049000,-591.68687884,0.00034814,2]
[426567657,1782597049000,-2344.59449357,0.00034865,2]
[426567640,1782597049000,-210.0,0.00034644,30]
[426567682,1782597049000,-151.0,0.00035,7]
[426567730,1782597049000,-151.0,0.00035,7]
[426567687,1782597049000,-151.0,0.00035,7]
[426567719,1782597049000,-235.77005,0.00035,7]
[426567720,1782597049000,-194.866053,0.00035,7]
[426567721,1782597049000,-151.0,0.00035,7]
[426567722,1782597049000,-151.0,0.00035,7]
[426567723,1782597049000,-235.77005,0.00035,7]
[426567724,1782597049000,-194.866053,0.00035,7]
[426567726,1782597049000,-194.866053,0.00035,7]
[426567727,1782597049000,-151.0,0.00035,7]
[426567728,1782597049000,-151.0,0.00035,7]
[426567744,1782597049000,-738.507978,0.00035,7]
[426567731,1782597049000,-151.0,0.00035,7]
[426567729,1782597049000,-181.216543,0.00035,7]
[426567717,1782597049000,-235.77005,0.00035,7]
[426567732,1782597049000,-264.140581,0.00035,7]
[426567733,1782597049000,-151.0,0.00035,7]
[426567736,1782597049000,-293.120413,0.00035,7]
[426567735,1782597049000,-151.0,0.00035,7]
[426567738,1782597049000,-151.0,0.00035,7]
[426567737,1782597049000,-151.0,0.00035,7]
[426567740,1782597049000,-151.0,0.00035,7]
[426567743,1782597049000,-738.507978,0.00035,7]
[426567739,1782597049000,-151.0,0.00035,7]
[426567741,1782597049000,-738.507978,0.00035,7]
[426567742,1782597049000,-738.507978,0.00035,7]
[426567745,1782597049000,-151.0,0.00035,7]
[426567688,1782597049000,-238.491055,0.00035,7]
[426567734,1782597049000,-193.974701,0.00035,7]
[426567718,1782597049000,-194.866053,0.00035,7]
[426567725,1782597049000,-165.16974,0.00035,7]
[426567715,1782597049000,-151.0,0.00035,7]
[426567691,1782597049000,-151.0,0.00035,7]
[426567689,1782597049000,-151.0,0.00035,7]
[426567690,1782597049000,-151.0,0.00035,7]